bitfinex-derivatives/quotes_SOLF0:USTF0_20241231
["timestamp","ask_amount","ask_price","bid_price","bid_amount"]
[1735620961243,10.43889596,188.63,188.58,5.94113398]
[1735620961545,1.6142,188.72,188.58,11.06932994]
[1735620961842,7.78389596,188.66,188.58,11.06932994]
[1735620962046,10.82389596,188.66,188.58,11.06932994]
[1735620962641,10.82389596,188.66,188.58,3.28543398]
[1735620962938,10.82389596,188.66,188.58,11.06932994]
[1735620963539,13.47859596,188.66,188.61,2.6553]
[1735620963743,10.82389596,188.66,188.58,11.06932994]
[1735620963930,2.6552,188.62,188.58,11.06932994]
[1735620964133,2.6552,188.62,188.58,13.72502994]
[1735620964341,2.6552,188.62,188.58,3.28543398]
[1735620964737,2.6561,188.56,188.51,2.6567]
[1735620965845,2.6562,188.55,188.5,7.78389596]
[1735620966142,2.6562,188.55,188.49,2.6568]
[1735620966534,2.6562,188.55,188.5,2.6568]
[1735620967533,10.84389596,188.56,188.47,4.6523]
[1735620967739,2.6563,188.54,188.49,2.657]
[1735620968343,7.78389596,188.54,188.48,7.78389596]
[1735620968543,2.6566,188.52,188.48,7.78389596]
[1735620968737,2.6566,188.52,188.47,2.6573]
[1735620968945,2.6567,188.52,188.45,10.44129596]
[1735620969142,7.78389596,188.54,188.45,10.44129596]
[1735620969143,7.78389596,188.54,188.45,7.78389596]
[1735620969343,7.78389596,188.54,188.47,7.78389596]
[1735620969537,10.84389596,188.54,188.47,7.78389596]
[1735620970044,10.84389596,188.54,188.4,1.4952]
[1735620970244,10.84389596,188.54,188.46,7.78389596]
[1735620970743,7.78389596,188.52,188.46,7.78389596]
[1735620971043,7.78389596,188.52,188.42,3.06]
[1735620971044,2.657,188.49,188.44,10.44149596]
[1735620971246,10.84389596,188.54,188.4,4.5552]
[1735620971439,10.84389596,188.54,188.47,7.78389596]
[1735620971635,13.50029596,188.54,188.48,2.657]
[1735620971842,13.50029596,188.54,188.48,10.44089596]
[1735620972044,10.84389596,188.54,188.48,10.44089596]
[1735620972242,2.9909,188.55,188.5,2.6568]
[1735620972243,5.6471,188.55,188.5,2.6568]
[1735620972539,5.6471,188.55,188.5,7.78389596]
[1735620972540,3.06,188.55,188.5,7.78389596]
[1735620972940,5.7162,188.55,188.5,7.78389596]
[1735620973141,3.06,188.55,188.48,7.78389596]
[1735620973339,10.84389596,188.55,188.48,7.78389596]
[1735620973843,2.6566,188.52,188.47,2.6573]
[1735620974245,2.6566,188.52,188.47,10.44119596]
[1735620974449,7.78389596,188.53,188.47,10.44119596]
[1735620974745,10.44029596,188.53,188.47,10.44119596]
[1735620975547,7.78389596,188.53,188.47,10.44119596]
[1735620975745,2.6566,188.52,188.47,10.44119596]
[1735620977848,7.78389596,188.54,188.47,7.78389596]
[1735620978051,3.0821,188.62,188.53,7.78389596]
[1735620978240,7.78389596,188.6,188.53,7.78389596]
[1735620980254,2.6557,188.59,188.53,10.44029596]
[1735620980952,7.78389596,188.6,188.55,10.43989596]
[1735620980953,2.6555,188.6,188.55,10.43989596]
[1735620981250,7.78389596,188.61,188.55,10.43989596]
[1735620982550,2.6556,188.59,188.55,10.43989596]
[1735620983350,7.78389596,188.59,188.51,2.6566]
[1735620983649,7.78389596,188.57,188.5,9.33359596]
[1735620983849,2.656,188.57,188.52,10.44049596]
[1735620984053,2.656,188.57,188.52,2.6566]
[1735620984350,2.656,188.57,188.52,10.44049596]
[1735620984549,2.6564,188.54,188.5,1.5497]
[1735620984751,7.78389596,188.55,188.49,7.78389596]
[1735620984952,7.78389596,188.55,188.47,7.78389596]
[1735620985256,2.6566,188.52,188.47,7.78389596]
[1735620985452,7.78389596,188.55,188.47,7.78389596]
[1735620986251,2.6566,188.52,188.45,12.17982679]
[1735620987454,3.06,188.57,188.47,2.6572]
[1735620988154,2.6566,188.53,188.47,2.6572]
[1735620988359,3.06,188.57,188.47,2.6572]
[1735620988654,3.06,188.57,188.48,2.6571]
[1735620988655,2.6565,188.53,188.48,2.6571]
[1735620989353,3.06,188.57,188.45,12.17982679]
[1735620989559,3.06,188.57,188.48,12.17982679]
[1735620990459,2.6562,188.55,188.48,12.17982679]
[1735620991149,5.7159,188.57,188.48,12.17982679]
[1735620991356,3.06,188.6,188.49,3.06]
[1735620991657,3.06,188.6,188.49,6.1718]
[1735620991859,2.6557,188.58,188.49,6.1718]
[1735620992064,3.06,188.6,188.51,12.17982679]
[1735620992258,15.95587508,188.64,188.51,12.17982679]
[1735620992558,2.6552,188.62,188.58,2.6557]
[1735620992861,2.6552,188.62,188.54,15.23982679]
[1735620993065,2.6552,188.62,188.57,2.6559]
[1735620993257,3.77604829,188.64,188.54,15.23982679]
[1735620993657,3.77604829,188.64,188.56,2.656]
[1735620994255,3.77604829,188.64,188.54,15.23982679]
[1735620994452,2.6553,188.61,188.57,2.6558]
[1735620995955,3.77604829,188.64,188.54,15.23982679]
[1735620996256,2.6554,188.6,188.54,15.23982679]
[1735620996854,3.77604829,188.64,188.54,3.06]
[1735620996855,15.95587508,188.64,188.54,3.06]
[1735620997059,15.95587508,188.64,188.51,12.17982679]
[1735620998058,2.6558,188.58,188.53,2.6563]
[1735620998258,2.6558,188.58,188.51,12.17982679]
[1735620999264,15.95587508,188.64,188.51,12.17982679]
[1735620999465,15.95587508,188.64,188.54,2.6562]
[1735620999964,15.95587508,188.64,188.51,12.17982679]
[1735621000164,2.6556,188.6,188.55,2.656]
[1735621000666,2.6556,188.59,188.55,2.656]
[1735621001162,15.95587508,188.64,188.51,12.17982679]
[1735621001362,2.6559,188.57,188.52,2.6564]
[1735621002867,3.1,188.6,188.51,12.17982679]
[1735621003159,2.6557,188.59,188.55,2.6561]
[1735621003761,3.77604829,188.64,188.54,12.17982679]
[1735621004161,3.77604829,188.64,188.55,3.1]
[1735621004565,6.43104829,188.64,188.55,3.1]
[1735621005167,6.43104829,188.64,188.6,2.6554]
[1735621008366,7.78664782,188.66,188.58,7.78664782]
[1735621008570,3.1286,188.69,188.62,7.78664782]
[1735621008770,1.574,188.69,188.62,7.78664782]
[1735621009569,4.2282,188.69,188.64,2.6549]
[1735621011071,2.6545,188.67,188.62,2.655]
[1735621012877,1.574,188.69,188.62,2.655]
[1735621013075,2.6546,188.66,188.62,2.655]
[1735621013977,4.674,188.69,188.62,2.655]
[1735621014179,2.6545,188.67,188.62,2.655]
[1735621014986,2.6542,188.7,188.6,15.26105136]
[1735621015278,3.0699,188.74,188.63,12.16105136]
[1735621015279,3.1,188.73,188.63,12.16105136]
[1735621015583,5.7536,188.73,188.68,2.6542]
[1735621015778,3.1,188.73,188.68,2.6542]
[1735621016185,3.0699,188.74,188.63,12.16105136]
[1735621016382,2.6537,188.72,188.66,2.6545]
[1735621017782,2.6539,188.71,188.66,2.6545]
[1735621018380,2.6541,188.7,188.66,2.6545]
[1735621020684,2.6545,188.67,188.63,12.16105136]
[1735621020886,3.1,188.74,188.6,15.26105136]
[1735621021081,12.16105136,188.72,188.6,15.26105136]
[1735621022284,2.6547,188.66,188.62,2.6551]
[1735621022984,12.16105136,188.72,188.6,15.26105136]
[1735621023177,2.6544,188.68,188.63,2.655]
[1735621023380,12.16105136,188.72,188.63,2.655]
[1735621024383,12.16105136,188.72,188.6,15.26105136]
[1735621024583,2.6546,188.66,188.62,2.6551]
[1735621026688,12.16105136,188.72,188.6,12.16105136]
[1735621026883,2.6545,188.67,188.63,2.655]
[1735621030294,3.0405,188.77,188.66,7.78218834]
[1735621030483,3.08,188.76,188.66,7.78218834]
[1735621030689,7.78218834,188.74,188.66,7.78218834]
[1735621031593,10.86218834,188.74,188.66,7.78218834]
[1735621032487,2.6539,188.71,188.67,2.6544]
[1735621033994,2.6541,188.7,188.66,10.43678834]
[1735621034590,7.78218834,188.72,188.65,7.78218834]
[1735621034786,2.6542,188.69,188.65,10.43688834]
[1735621036091,7.78218834,188.7,188.57,3.1861]
[1735621036292,7.78218834,188.7,188.62,7.78218834]
[1735621037395,2.6544,188.68,188.62,10.43728834]
[1735621037600,7.78218834,188.7,188.62,10.43728834]
[1735621038792,2.6546,188.67,188.62,10.43728834]
[1735621041399,2.6546,188.66,188.62,10.43728834]
[1735621042800,2.6546,188.66,188.62,2.6551]
[1735621042996,2.6546,188.66,188.62,10.43728834]
[1735621044206,2.6546,188.66,188.62,2.6551]
[1735621044502,7.78218834,188.7,188.62,7.78218834]
[1735621044801,2.6545,188.67,188.63,2.655]
[1735621048500,29.27128625,188.75,188.64,7.78218834]
[1735621048700,3.08,188.74,188.64,7.78218834]
[1735621048903,7.78218834,188.72,188.59,3.08]
[1735621049105,7.78218834,188.72,188.63,7.78218834]
[1735621049304,7.78218834,188.7,188.63,7.78218834]
[1735621049506,10.43628834,188.7,188.65,2.6547]
[1735621050506,2.6543,188.68,188.64,2.6549]
[1735621050910,3.08,188.74,188.68,2.6543]
[1735621050911,2.6536,188.74,188.68,2.6543]
[1735621051209,3.08,188.73,188.68,2.6543]
[1735621052303,7.78218834,188.74,188.67,7.78218834]
[1735621052509,10.43568834,188.74,188.7,2.654]
[1735621053505,2.6533,188.75,188.71,2.6539]
[1735621053704,2.6533,188.75,188.69,7.78218834]
[1735621054503,2.6533,188.75,188.7,2.654]
[1735621054709,10.86218834,188.76,188.7,2.654]
[1735621054909,2.6535,188.74,188.7,2.654]
[1735621056207,7.78218834,188.76,188.71,2.6538]
[1735621056410,1.554,188.77,188.71,2.6538]
[1735621056411,1.554,188.77,188.71,10.43598834]
[1735621057406,9.31138834,188.78,188.73,2.6536]
[1735621057608,9.31138834,188.78,188.71,7.78218834]
[1735621058006,2.6532,188.77,188.71,7.78218834]
[1735621058312,7.31782156,188.84,188.75,7.78218834]
[1735621058509,10.37782156,188.84,188.75,7.78218834]
[1735621058708,15.1000099,188.84,188.77,7.78218834]
[1735621059314,7.31782156,188.84,188.77,7.78218834]
[1735621059515,7.78218834,188.85,188.77,7.78218834]
[1735621059710,7.78218834,188.85,188.75,1.515]
[1735621060011,2.6523,188.83,188.78,10.43508834]
[1735621060213,7.78218834,188.85,188.78,7.78218834]
[1735621060413,7.78218834,188.85,188.75,1.515]
[1735621060614,7.78218834,188.85,188.77,7.78218834]
[1735621060814,2.6525,188.81,188.77,7.78218834]
[1735621061707,7.78218834,188.83,188.77,7.78218834]
[1735621062811,7.78218834,188.84,188.77,7.78218834]
[1735621064417,2.6523,188.83,188.78,2.6528]
[1735621065818,7.78218834,188.84,188.77,7.78218834]
[1735621066016,2.6521,188.84,188.79,10.43488834]
[1735621070821,2.6521,188.84,188.79,2.6527]
[1735621071015,2.6521,188.84,188.8,7.78218834]
[1735621071418,2.6521,188.84,188.79,2.6527]
[1735621071614,2.6521,188.84,188.79,10.43488834]
[1735621072125,2.6523,188.83,188.79,7.78218834]
[1735621074924,2.6524,188.82,188.79,7.78218834]
[1735621075223,2.6524,188.82,188.77,10.43518834]
[1735621075825,2.6524,188.82,188.78,2.6529]
[1735621076219,2.6524,188.82,188.79,7.78218834]
[1735621078128,7.78218834,188.84,188.75,1.515]
[1735621078329,7.78218834,188.82,188.76,7.78218834]
[1735621078626,10.84218834,188.82,188.76,7.78218834]
[1735621078829,2.6527,188.8,188.76,7.78218834]
[1735621079126,10.84218834,188.82,188.74,7.78218834]
[1735621079517,10.84218834,188.82,188.74,10.43558834]
[1735621079518,2.6529,188.78,188.74,10.43558834]
[1735621080232,2.6529,188.78,188.74,2.6534]
[1735621080429,7.78218834,188.8,188.73,10.43578834]
[1735621080733,2.6532,188.77,188.73,7.78218834]
[1735621081129,3.1084,188.86,188.75,7.78218834]
[1735621081331,10.89058834,188.86,188.78,7.78218834]
[1735621081530,10.89058834,188.86,188.8,2.6526]
[1735621082429,2.652,188.85,188.79,2.6527]
[1735621082630,2.652,188.85,188.78,7.78218834]
[1735621082931,2.6521,188.84,188.78,7.78218834]
[1735621083135,2.6521,188.84,188.78,10.43508834]
[1735621083434,3.1084,188.86,188.78,10.43508834]
[1735621083637,2.6522,188.83,188.78,7.78218834]
[1735621084834,1.6137,188.9,188.78,7.78218834]
[1735621085136,7.78218834,188.86,188.78,7.78218834]
[1735621086137,3.06,188.88,188.78,7.78218834]
[1735621086326,7.78218834,188.85,188.78,7.78218834]
[1735621086532,2.6521,188.84,188.78,10.43508834]
[1735621087239,2.6521,188.84,188.79,2.6527]
[1735621088137,2.6519,188.86,188.8,2.6526]
[1735621088330,10.43408834,188.86,188.8,2.6526]
[1735621088735,3.06,188.88,188.8,2.6526]
[1735621088938,2.6519,188.85,188.8,2.6526]
[1735621089438,3.06,188.88,188.81,2.6524]
[1735621089439,3.1,188.87,188.81,2.6524]
[1735621090034,2.6518,188.86,188.8,7.78218834]
[1735621090241,7.78218834,188.9,188.82,7.78218834]
[1735621090437,7.31782156,188.91,188.84,7.78218834]
[1735621090630,2.6513,188.9,188.84,7.78218834]
[1735621090934,7.78218834,188.89,188.82,7.78218834]
[1735621092639,2.6517,188.87,188.82,10.43438834]
[1735621093235,2.6515,188.88,188.83,2.6521]
[1735621093636,2.6515,188.88,188.82,7.78218834]
[1735621093837,2.6515,188.88,188.84,2.652]
[1735621094237,7.78218834,188.9,188.84,2.652]
[1735621094437,7.78218834,188.9,188.82,7.78218834]
[1735621094638,7.78218834,188.9,188.83,2.6522]
[1735621095039,2.6516,188.88,188.83,2.6522]
[1735621099547,2.6516,188.88,188.82,7.78218834]
[1735621099748,2.6516,188.88,188.84,2.652]
[1735621101043,7.78218834,188.92,188.84,7.78218834]
[1735621101244,2.6513,188.9,188.86,2.6517]
[1735621101449,10.88218834,188.92,188.84,7.78218834]
[1735621102149,2.6511,188.91,188.87,2.6516]
[1735621102952,13.53318834,188.92,188.87,2.6516]
[1735621104254,10.43318834,188.92,188.87,2.6516]
[1735621105152,7.31782156,188.98,188.9,7.78218834]
[1735621105451,7.31782156,188.98,188.92,7.78218834]
[1735621105653,15.1000099,188.99,188.94,2.6505]
[1735621105855,7.31782156,188.99,188.94,7.78218834]
[1735621106249,7.31782156,188.99,188.96,2.6504]
[1735621106655,68.97456085,189.01,188.96,2.6504]
[1735621106848,10.43198834,189.01,188.94,7.78218834]
[1735621107048,10.43198834,189.01,188.95,2.6505]
[1735621110252,10.43198834,189.01,188.94,7.78218834]
[1735621110556,2.6496,189.02,188.97,2.6502]
[1735621111453,10.84018834,189.05,188.96,7.78218834]
[1735621111656,2.6494,189.03,188.98,2.6501]
[1735621111956,29.27128625,189.11,188.84,4.509]
[1735621111957,29.27128625,189.11,189.0,7.78218834]
[1735621112152,7.78218834,189.08,189.0,7.78218834]
[1735621113555,10.43088834,189.08,189.0,7.78218834]
[1735621113754,7.78218834,189.08,189.0,7.78218834]
[1735621113955,7.78218834,189.06,189.0,7.78218834]
[1735621114658,10.88218834,189.06,188.98,10.88218834]
[1735621115261,2.6496,189.02,188.98,10.88218834]
[1735621115559,2.6496,189.02,188.97,2.6502]
[1735621115759,2.6496,189.02,188.98,7.78218834]
[1735621117555,2.6497,189.01,188.98,7.78218834]
[1735621117858,3.1,189.06,188.96,7.78218834]
[1735621117859,7.78218834,189.02,188.96,7.78218834]
[1735621118160,7.78218834,189.02,188.94,9.27828834]
[1735621118361,2.65,188.99,188.94,11.92878834]
[1735621119360,2.65,188.99,188.95,2.6505]
[1735621120061,2.6503,188.97,188.92,2.6509]
[1735621120361,2.6503,188.97,188.93,7.78218834]
[1735621121863,2.6503,188.97,188.93,10.43298834]
[1735621122060,5.7498,189.01,188.95,7.78218834]
[1735621122363,5.7498,189.01,188.96,2.6504]
[1735621124166,3.1,189.01,188.95,7.78218834]
[1735621124366,7.78218834,189.02,188.97,2.6501]
[1735621125066,7.78218834,189.02,188.96,2.6504]
[1735621126468,2.6498,189.01,188.96,2.6504]
[1735621127768,2.6498,189.01,188.96,10.43258834]
[1735621128364,2.6498,189.0,188.96,10.43258834]
[1735621129364,3.1,189.1,188.98,7.78218834]
[1735621129670,2.6489,189.07,189.02,2.6494]
[1735621133165,2.6489,189.07,189.01,7.78218834]
[1735621133166,2.6487,189.08,189.03,2.6493]
[1735621135767,2.649,189.06,189.01,10.43178834]
[1735621137672,7.78218834,189.09,188.97,4.6048]
[1735621137673,2.6493,189.04,189.0,2.6498]
[1735621139275,2.6493,189.04,188.99,10.43208834]
[1735621140271,7.78218834,189.07,188.99,10.43208834]
[1735621140480,2.6496,189.02,188.99,7.78218834]
[1735621140680,7.78218834,189.05,188.94,3.27977261]
[1735621140976,10.88218834,189.05,188.97,7.78218834]
[1735621141170,2.6498,189.01,188.97,7.78218834]
[1735621141473,10.88218834,189.05,188.96,2.6503]
[1735621141474,7.78218834,189.03,188.96,2.6503]
[1735621141674,7.78218834,189.03,188.95,10.43258834]
[1735621141876,7.78218834,189.03,188.95,7.78218834]
[1735621143776,2.65,188.99,188.95,7.78218834]
[1735621143977,7.78218834,189.03,188.95,7.78218834]
[1735621144883,2.65,188.99,188.95,7.78218834]
[1735621145882,2.65,188.99,188.95,10.43268834]
[1735621151882,2.65,188.99,188.96,2.6504]
[1735621155882,2.6501,188.98,188.95,7.78218834]
[1735621156875,2.6503,188.97,188.94,3.27977261]
[1735621157082,2.6503,188.97,188.93,10.43298834]
[1735621159085,2.6503,188.97,188.94,2.6506]
[1735621159280,2.6501,188.98,188.95,7.78218834]
[1735621163786,2.6501,188.98,188.89,3.1]
[1735621163994,7.78218834,188.97,188.9,7.78218834]
[1735621165487,2.6505,188.95,188.91,2.651]
[1735621165693,2.6505,188.95,188.89,3.1]
[1735621165893,2.6505,188.95,188.89,10.88218834]
[1735621166094,2.6505,188.95,188.91,2.651]
[1735621167994,2.6502,188.98,188.94,2.6507]
[1735621168189,2.6502,188.98,188.91,7.78218834]
[1735621168392,2.6502,188.98,188.85,7.8511]
[1735621168393,7.31782156,189.02,188.93,7.78218834]
[1735621168587,2.6498,189.0,188.96,2.6504]
[1735621168793,10.88218834,189.01,188.93,7.78218834]
[1735621170494,7.78218834,189.01,188.95,7.78218834]
[1735621170697,3.1,189.02,188.95,7.78218834]
[1735621172500,5.7496,189.02,188.97,2.6502]
[1735621174992,2.6496,189.02,188.97,2.6502]
[1735621187006,2.6497,189.01,188.97,2.6502]
[1735621190713,7.78218834,189.01,188.95,2.6504]
[1735621192311,2.6501,188.99,188.95,2.6504]
[1735621192707,7.78218834,189.01,188.94,2.6506]
[1735621192909,2.65,188.99,188.94,2.6506]
[1735621194508,2.65,188.99,188.95,7.78218834]
[1735621194706,2.65,188.99,188.95,10.43258834]
[1735621197308,2.65,188.99,188.95,2.6504]
[1735621197612,2.6501,188.98,188.94,2.6506]
[1735621200419,10.47542156,189.03,188.95,7.78218834]
[1735621200610,10.47542156,189.03,188.97,7.78218834]
[1735621200816,9.96732156,189.03,188.98,2.65]
[1735621201215,2.6495,189.03,188.98,2.65]
[1735621201416,3.06,189.04,188.97,7.78218834]
[1735621201618,3.06,189.04,188.97,10.43238834]
[1735621201819,7.78218834,189.03,188.95,7.78218834]
[1735621202014,2.6499,189.0,188.95,10.43258834]
[1735621203820,2.6499,189.0,188.96,2.6503]
[1735621204218,7.78218834,189.03,188.95,7.78218834]
[1735621204421,7.78218834,189.03,188.97,2.6502]
[1735621204422,2.6497,189.01,188.97,2.6502]
[1735621204717,3.06,189.04,188.97,7.78218834]
[1735621204919,2.6497,189.02,188.98,2.6501]
[1735621205118,2.6497,189.02,188.97,7.78218834]
[1735621205522,2.6497,189.02,188.97,10.43238834]
[1735621206724,2.65,188.99,188.95,7.78218834]
[1735621207219,2.65,188.99,188.95,10.43268834]
[1735621207427,7.78218834,189.03,188.95,7.78218834]
[1735621207822,3.06,189.04,188.95,7.78218834]
[1735621208022,10.84218834,189.04,188.95,7.78218834]
[1735621208521,2.6497,189.01,188.97,2.6502]
[1735621209125,7.31782156,189.05,188.99,7.78218834]
[1735621209626,7.31782156,189.05,189.01,2.6495]
[1735621210327,10.80218834,189.07,189.01,2.6495]
[1735621210531,2.6492,189.05,189.01,2.6495]
[1735621210826,10.80218834,189.07,188.99,7.78218834]
[1735621211221,10.80218834,189.07,189.0,2.6498]
[1735621212129,10.80218834,189.07,189.01,2.6497]
[1735621212616,7.78218834,189.07,189.01,2.6497]
[1735621212828,7.78218834,189.07,189.01,10.43188834]
[1735621213426,3.02,189.08,189.02,2.6494]
[1735621213627,10.80218834,189.08,189.02,2.6494]
[1735621214032,29.27128625,189.1,189.07,7.78218834]
[1735621214228,29.27128625,189.1,189.05,10.80218834]
[1735621214429,29.27128625,189.1,189.05,7.78218834]
[1735621214630,7.78218834,189.09,189.01,5.6697]
[1735621214833,7.78218834,189.09,189.01,10.43188834]
[1735621215132,7.78218834,189.07,188.99,13.45198834]
[1735621216435,2.6493,189.04,188.99,13.45198834]
[1735621216627,7.78218834,189.07,188.99,7.78218834]
[1735621218039,2.6495,189.03,188.99,7.78218834]
[1735621220040,2.6492,189.05,189.01,7.78218834]
[1735621220935,7.78218834,189.07,189.01,7.78218834]
[1735621221140,2.6489,189.07,189.02,2.6495]
[1735621221839,3.1741,189.09,189.03,7.78218834]
[1735621222040,2.6487,189.08,189.03,13.45158834]
[1735621222340,7.78218834,189.11,189.03,10.80218834]
[1735621222541,2.6486,189.09,189.03,13.45148834]
[1735621222735,7.78218834,189.11,189.05,7.78218834]
[1735621222935,7.78218834,189.13,189.05,7.78218834]
[1735621223438,7.31782156,189.14,189.05,10.80218834]
[1735621223640,15.1000099,189.14,189.05,10.80218834]
[1735621223839,7.78218834,189.14,189.05,10.80218834]
[1735621224436,2.6484,189.11,189.06,2.6489]
[1735621226445,2.6484,189.1,189.05,13.45128834]
[1735621226942,2.6487,189.08,189.03,2.6494]
[1735621227240,7.78218834,189.12,189.04,7.78218834]
[1735621228445,2.649,189.07,189.04,7.78218834]
[1735621228643,7.78218834,189.12,189.04,7.78218834]
[1735621228943,2.6489,189.07,189.04,7.78218834]
[1735621229341,7.78218834,189.1,189.02,7.78218834]
[1735621229546,2.6493,189.04,189.02,7.78218834]
[1735621230540,7.78218834,189.08,189.0,3.28091341]
[1735621230841,7.78218834,189.04,188.96,7.78218834]
[1735621231444,2.6498,189.0,188.96,7.78218834]
[1735621231746,7.78218834,189.04,188.96,7.78218834]
[1735621232045,2.6498,189.0,188.96,7.78218834]
[1735621232340,7.78218834,189.02,188.94,7.78218834]
[1735621232541,3.02,189.06,188.94,7.78218834]
[1735621232542,7.78218834,189.0,188.94,7.78218834]
[1735621234846,7.78218834,189.0,188.92,9.30578834]
[1735621235250,2.6504,188.96,188.92,9.30578834]
[1735621236847,2.6502,188.97,188.92,11.95668834]
[1735621238551,2.6505,188.96,188.92,7.78218834]
[1735621241359,7.78218834,188.98,188.9,7.78218834]
[1735621241958,2.6508,188.94,188.9,7.78218834]
[1735621242759,7.78218834,188.98,188.9,7.78218834]
[1735621242958,2.6508,188.93,188.9,7.78218834]
[1735621243658,2.651,188.92,188.9,7.78218834]
[1735621243861,2.651,188.92,188.88,7.78218834]
[1735621247067,2.651,188.92,188.88,10.43368834]
[1735621247263,2.6507,188.94,188.9,7.78218834]
[1735621247459,7.78218834,188.99,188.92,7.78218834]
[1735621248666,2.6503,188.97,188.93,2.6508]
[1735621248964,2.6503,188.97,188.92,7.78218834]
[1735621249265,2.6503,188.97,188.92,10.43298834]
[1735621250065,10.88218834,189.0,188.92,10.43298834]
[1735621250066,10.88218834,189.0,188.92,7.78218834]
[1735621250262,2.6504,188.96,188.92,7.78218834]
[1735621254867,10.88218834,189.0,188.92,7.78218834]
[1735621255068,2.6505,188.95,188.92,7.78218834]
[1735621257667,2.6505,188.95,188.9,10.43338834]
[1735621260271,2.6507,188.94,188.9,10.43338834]
[1735621262174,3.76349538,189.01,188.92,7.78218834]
[1735621262474,15.40148834,189.05,188.96,7.78218834]
[1735621262674,13.92908834,189.05,188.96,7.78218834]
[1735621262870,2.6494,189.04,188.98,10.43218834]
[1735621263070,2.6494,189.04,189.0,7.78218834]
[1735621266377,7.78218834,189.07,189.0,7.78218834]
[1735621266672,2.6491,189.06,189.0,7.78218834]
[1735621267071,2.6494,189.04,188.99,2.6499]
[1735621267277,7.78218834,189.07,188.98,7.78218834]
[1735621267478,7.78218834,189.07,189.0,7.78218834]
[1735621269280,2.6494,189.03,189.0,7.78218834]
[1735621269479,7.78218834,189.05,188.98,7.78218834]
[1735621269674,2.6495,189.03,188.96,10.43238834]
[1735621269878,7.78218834,189.05,188.98,7.78218834]
[1735621270381,2.6497,189.02,188.98,7.78218834]
[1735621270581,7.78218834,189.05,188.98,7.78218834]
[1735621270878,2.6497,189.02,188.98,7.78218834]
[1735621271781,7.78218834,189.05,188.98,7.78218834]
[1735621271981,7.78218834,189.07,188.98,7.78218834]
[1735621272183,10.84218834,189.07,188.98,7.78218834]
[1735621272978,3.06,189.07,189.0,7.78218834]
[1735621273279,3.2049,189.1,189.02,7.78218834]
[1735621273485,2.6488,189.08,189.04,2.6492]
[1735621274582,2.6488,189.07,189.02,10.43158834]
[1735621276490,2.649,189.06,189.02,7.78218834]
[1735621277787,7.78218834,189.07,189.0,2.6498]
[1735621278082,7.78218834,189.07,189.0,10.43198834]
[1735621279487,2.6491,189.05,189.0,10.43198834]
[1735621279690,7.78218834,189.07,189.0,7.78218834]
[1735621280287,2.6494,189.03,189.0,7.78218834]
[1735621280587,7.78218834,189.05,188.98,10.43218834]
[1735621280789,2.6494,189.03,188.98,10.43218834]
[1735621281385,2.6494,189.03,188.99,2.6499]
[1735621282291,2.6493,189.04,189.0,10.43198834]
[1735621282688,2.6491,189.05,189.01,2.6496]
[1735621282884,3.06,189.07,188.97,3.06]
[1735621282885,3.2049,189.1,189.02,7.78218834]
[1735621283080,1.6074,189.1,189.04,7.78218834]
[1735621283291,2.6486,189.09,189.04,10.43128834]
[1735621283489,7.78218834,189.13,189.06,7.78218834]
[1735621283689,7.78218834,189.13,189.03,1.6238]
[1735621283992,7.78218834,189.13,189.06,7.78218834]
[1735621285392,2.6481,189.13,189.06,7.78218834]
[1735621285689,2.6481,189.13,189.08,7.78218834]
[1735621286191,2.6481,189.13,189.09,2.6486]
[1735621286493,6.82568403,189.17,189.1,7.78218834]
[1735621286494,3.76568403,189.17,189.1,7.78218834]
[1735621286886,3.76568403,189.17,189.12,7.78218834]
[1735621287389,2.6476,189.16,189.12,7.78218834]
[1735621290688,3.76568403,189.17,189.1,7.78218834]
[1735621291089,7.78218834,189.16,189.09,3.06]
[1735621291484,7.78218834,189.16,189.08,7.78218834]
[1735621292091,2.6481,189.13,189.08,10.43088834]
[1735621292292,7.78218834,189.16,189.08,7.78218834]
[1735621292593,2.6484,189.1,189.05,5.7091]
[1735621292786,2.6484,189.1,189.06,7.78218834]
[1735621292987,7.78218834,189.14,189.06,7.78218834]
[1735621294290,2.6483,189.11,189.06,10.43098834]
[1735621294492,7.78218834,189.14,189.08,7.78218834]